fUST/lending_fUST_20240110
["ID","MTS","AMOUNT","RATE_DAILY","PERIOD"]
[310992329,1704843044854,-2056.36,0.00035616,2]
[310992330,1704843044863,-2056.36,0.00035616,2]
[310992331,1704843044872,-2056.36,0.00035616,2]
[310992332,1704843044882,-2056.36,0.00035616,2]
[310992333,1704843044892,-2056.36,0.00035616,2]
[310992334,1704843044901,-2056.36,0.00035616,2]
[310992335,1704843044910,-2056.36,0.00035616,2]
[310992336,1704843044920,-500.0,0.00035616,2]
[310992337,1704843044930,-2056.36,0.00035616,2]
[310992338,1704843044940,-2056.36,0.00035616,2]
[310992339,1704843044949,-2056.36,0.00035616,2]
[310992340,1704843044958,-2056.54844852,0.00035616,2]
[310992341,1704843044968,-500.0,0.00035616,2]
[310992342,1704843044977,-500.0,0.00035616,2]
[310992343,1704843044988,-500.0,0.00035616,2]
[310992344,1704843044998,-508.34241231,0.00035616,2]
[310992345,1704843045008,-500.0,0.00035616,2]
[310992346,1704843045017,-500.0,0.00035616,2]
[310992347,1704843045026,-500.0,0.00035616,2]
[310992348,1704843045035,-500.0,0.00035616,2]
[310992349,1704843045045,-500.0,0.00035616,2]
[310992350,1704843045054,-500.0,0.00035616,2]
[310992351,1704843045064,-503.19819389,0.00035616,2]
[310992352,1704843045073,-500.0,0.00035616,2]
[310992353,1704843045082,-500.0,0.00035616,2]
[310992354,1704843045091,-500.0,0.00035616,2]
[310992355,1704843045101,-500.19647848,0.00035616,2]
[310992356,1704843045110,-500.0,0.00035616,2]
[310992357,1704843045119,-500.58457441,0.00035616,2]
[310992359,1704843045128,-176.41422842,0.00035616,2]
[310992361,1704843045138,-606.91,0.00035616,2]
[310992362,1704843045147,-500.0,0.00035616,2]
[310992363,1704843045156,-500.45328493,0.00035616,2]
[310992364,1704843045165,-500.0,0.00035616,2]
[310992365,1704843045174,-500.0,0.00035616,2]
[310992366,1704843045184,-500.0,0.00035616,2]
[310992367,1704843045193,-500.0,0.00035616,2]
[310992368,1704843045202,-500.0,0.00035616,2]
[310992369,1704843045211,-500.0,0.00035616,2]
[310992370,1704843045220,-500.0,0.00035616,2]
[310992371,1704843045229,-500.0,0.00035616,2]
[310992372,1704843045238,-500.73511553,0.00035616,2]
[310992373,1704843045247,-500.0,0.00035616,2]
[310992374,1704843045259,-313.82233785,0.00035616,2]
[310992375,1704843045268,-3709.22,0.00035616,2]
[310992376,1704843045277,-503.58707094,0.00035616,2]
[310992377,1704843045287,-500.0,0.00035616,2]
[310992378,1704843045296,-500.0,0.00035616,2]
[310992379,1704843045306,-500.0,0.00035616,2]
[310992380,1704843045316,-561.4115997,0.00035616,2]
[310992381,1704843045325,-500.0,0.00035616,2]
[310992382,1704843045336,-500.20616363,0.00035616,2]
[310992383,1704843045345,-523.2667145,0.00035616,2]
[310992384,1704843045354,-501.7226315,0.00035616,2]
[310992385,1704843045364,-500.0,0.00035616,2]
[310992386,1704843045373,-500.0,0.00035616,2]
[310992387,1704843045383,-500.0,0.00035616,2]
[310992388,1704843045393,-500.0,0.00035616,2]
[310992389,1704843045402,-500.0,0.00035616,2]
[310992390,1704843045412,-500.0,0.00035616,2]
[310992391,1704843045420,-500.0,0.00035616,2]
[310992392,1704843045430,-1754.44,0.00035616,2]
[310992393,1704843045440,-603.27854241,0.00035616,2]
[310992394,1704843045450,-500.0,0.00035616,2]
[310992395,1704843045460,-493.31782965,0.00035616,2]
[310992397,1704843045470,-500.0,0.00035616,2]
[310992398,1704843045480,-500.0,0.00035616,2]
[310992400,1704843045489,-501.57911517,0.00035616,2]
[310992403,1704843045498,-500.0,0.00035616,2]
[310992404,1704843045532,-504.18025356,0.00035616,2]
[310992407,1704843045541,-248.34132738,0.00035616,2]
[310992410,1704843045551,-500.0,0.00035616,2]
[310992413,1704843045561,-1532.08,0.00035616,2]
[310992415,1704843045570,-500.0,0.00035616,2]
[310992416,1704843045579,-581.56,0.00035616,2]
[310992417,1704843045588,-500.0,0.00035616,2]
[310992418,1704843045598,-500.0,0.00035616,2]
[310992420,1704843045608,-220.47107168,0.00035616,2]
[310992422,1704843045617,-569.71034661,0.00035616,2]
[310992424,1704843045626,-501.84230411,0.00035616,2]
[310992426,1704843045636,-500.0,0.00035616,2]
[310992429,1704843045645,-500.0,0.00035616,2]
[310992432,1704843045653,-8733.16,0.00035616,2]
[310992435,1704843045662,-500.0,0.00035616,2]
[310992438,1704843045672,-500.0,0.00035616,2]
[310992441,1704843045681,-500.0,0.00035616,2]
[310992444,1704843045690,-500.0,0.00035616,2]
[310992446,1704843045699,-500.0,0.00035616,2]
[310992449,1704843045709,-5942.72,0.00035616,2]
[310992451,1704843045718,-500.0,0.00035616,2]
[310992454,1704843045727,-500.0,0.00035616,2]
[310992457,1704843045736,-500.0,0.00035616,2]
[310992459,1704843045746,-8079.57,0.00035616,2]
[310992461,1704843045757,-500.0,0.00035616,2]
[310992464,1704843045766,-356.09894193,0.00035616,2]
[310992466,1704843045775,-750.0,0.00035616,10]
[310992468,1704843045784,-514.17470731,0.00035616,2]
[310992470,1704843045795,-196.89239958,0.00035616,2]
[310992472,1704843045804,-2404.59,0.00035616,2]
[310992474,1704843045813,-500.0,0.00035616,2]
[310992476,1704843045826,-152.38900235,0.00035616,7]
[310992478,1704843045835,-500.0,0.00035616,2]
[310992480,1704843045844,-500.0,0.00035616,2]
[310992482,1704843045854,-500.0,0.00035616,2]
[310992484,1704843045862,-500.0,0.00035616,2]
[310992486,1704843045871,-500.0,0.00035616,2]
[310992488,1704843045880,-500.0,0.00035616,2]
[310992490,1704843045890,-500.0,0.00035616,2]
[310992491,1704843045899,-500.0,0.00035616,2]
[310992493,1704843045909,-500.0,0.00035616,2]
[310992495,1704843045918,-531.27074928,0.00035616,2]
[310992497,1704843045927,-500.0,0.00035616,2]
[310992499,1704843045936,-500.0,0.00035616,2]
[310992501,1704843045945,-500.0,0.00035616,2]
[310992503,1704843045955,-500.0,0.00035616,2]
[310992505,1704843045964,-500.0,0.00035616,2]
[310992507,1704843045973,-500.0,0.00035616,2]
[310992509,1704843045982,-500.0,0.00035616,2]
[310992511,1704843045991,-249.82857974,0.00035616,2]
[310992513,1704843046000,-500.0,0.00035616,2]
[310992521,1704843046087,-523.29,0.00035616,2]
[310992524,1704843046096,-501.54141502,0.00035616,2]
[310992528,1704843046106,-453.65598886,0.00035616,2]
[310992530,1704843046115,-500.0,0.00035616,2]
[310992533,1704843046124,-500.0,0.00035616,2]
[310992536,1704843046133,-500.0,0.00035616,2]
[310992539,1704843046154,-698.91,0.00035616,2]
[310992541,1704843046165,-500.0,0.00035616,2]
[310992543,1704843046176,-500.0,0.00035616,2]
[310992545,1704843046186,-680.43,0.00035616,2]
[310992547,1704843046196,-2007.44,0.00035616,2]
[310992549,1704843046206,-602.04429128,0.00035616,2]
[310992551,1704843046215,-5750.93,0.00035616,2]
[310992553,1704843046225,-500.0,0.00035616,2]
[310992554,1704843046239,-500.0,0.00035616,2]
[310992555,1704843046249,-604.73200117,0.00035616,2]
[310992556,1704843046259,-500.0,0.00035616,2]
[310992557,1704843046269,-500.0,0.00035616,2]
[310992558,1704843046279,-500.35757381,0.00035616,2]
[310992559,1704843046289,-3665.7,0.00035616,2]
[310992560,1704843046299,-500.0,0.00035616,2]
[310992561,1704843046309,-500.0,0.00035616,2]
[310992562,1704843046319,-812.52,0.00035616,2]
[310992563,1704843046329,-1201.4,0.00035616,2]
[310992564,1704843046339,-46994.92,0.00035616,2]
[310992565,1704843046349,-500.0,0.00035616,2]
[310992566,1704843046358,-1998.35,0.00035616,2]
[310992567,1704843046368,-500.0,0.00035616,2]
[310992568,1704843046377,-500.0,0.00035616,2]
[310992569,1704843046387,-500.0,0.00035616,2]
[310992570,1704843046396,-2626.13,0.00035616,2]
[310992571,1704843046407,-500.0,0.00035616,2]
[310992572,1704843046416,-500.0,0.00035616,2]
[310992574,1704843046426,-500.0,0.00035616,2]
[310992576,1704843046435,-538.95,0.00035616,2]
[310992578,1704843046446,-515.88,0.00035616,2]
[310992580,1704843046455,-500.00988812,0.00035616,2]
[310992581,1704843046465,-500.0,0.00035616,2]
[310992583,1704843046474,-1988.92,0.00035616,2]
[310992584,1704843046484,-500.0,0.00035616,2]
[310992585,1704843046494,-500.0,0.00035616,2]
[310992586,1704843046504,-843.57,0.00035616,2]
[310992587,1704843046514,-500.0,0.00035616,2]
[310992588,1704843046523,-506.25,0.00035616,2]
[310992589,1704843046533,-510.06108715,0.00035616,2]
[310992590,1704843046542,-500.0,0.00035616,2]
[310992591,1704843046551,-1310.54,0.00035616,2]
[310992592,1704843046561,-500.0,0.00035616,2]
[310992593,1704843046570,-374.41066116,0.00035616,2]
[310992594,1704843046579,-500.0,0.00035616,2]
[310992595,1704843046589,-500.0,0.00035616,2]
[310992596,1704843046598,-500.0,0.00035616,2]
[310992597,1704843046608,-500.0,0.00035616,2]
[310992598,1704843046617,-500.0,0.00035616,2]
[310992599,1704843046627,-500.0,0.00035616,2]
[310992600,1704843046637,-17315.0,0.00035616,2]
[310992601,1704843046646,-500.0,0.00035616,2]
[310992602,1704843046656,-500.0,0.00035616,2]
[310992603,1704843046665,-500.0,0.00035616,2]
[310992604,1704843046675,-500.0,0.00035616,2]
[310992605,1704843046684,-2853.99,0.00035616,2]
[310992606,1704843046694,-503.14331049,0.00035616,2]
[310992607,1704843046703,-938.24,0.00035616,2]
[310992608,1704843046713,-500.0,0.00035616,2]
[310992609,1704843046722,-555.29,0.00035616,2]
[310992610,1704843046732,-500.0,0.00035616,2]
[310992611,1704843046742,-500.0,0.00035616,2]
[310992612,1704843046751,-500.0,0.00035616,2]
[310992613,1704843046762,-500.0,0.00035616,2]
[310992614,1704843046772,-500.0,0.00035616,2]
[310992615,1704843046782,-511.79602753,0.00035616,2]
[310992616,1704843046792,-517.86667267,0.00035616,2]
[310992617,1704843046802,-500.0,0.00035616,2]
[310992618,1704843046811,-510.69327756,0.00035616,2]
[310992619,1704843046822,-500.20629385,0.00035616,2]
[310992620,1704843046831,-1000.0,0.00035616,2]
[310992621,1704843046841,-500.0,0.00035616,2]
[310992622,1704843046851,-500.0,0.00035616,2]
[310992623,1704843046861,-355.65774064,0.00035616,2]
[310992624,1704843046872,-500.0,0.00035616,2]
[310992625,1704843046881,-500.0,0.00035616,2]
[310992626,1704843046892,-500.0,0.00035616,2]
[310992627,1704843046902,-500.0,0.00035616,2]
[310992628,1704843046911,-500.0,0.00035616,2]
[310992629,1704843046921,-500.0,0.00035616,2]
[310992630,1704843046932,-500.0,0.00035616,2]
[310992631,1704843046942,-500.0,0.00035616,2]
[310992632,1704843046952,-4232.06,0.00035616,2]
[310992633,1704843046961,-500.80230841,0.00035616,2]
[310992634,1704843046972,-500.0,0.00035616,2]
[310992635,1704843046981,-501.16573885,0.00035616,2]
[310992636,1704843046991,-1733.28,0.00035616,2]
[310992637,1704843047002,-501.27966863,0.00035616,2]
[310992638,1704843047012,-500.0,0.00035616,2]
[310992639,1704843047022,-558.49909865,0.00035616,2]
[310992640,1704843047032,-500.0,0.00035616,2]
[310992641,1704843047041,-500.0,0.00035616,2]
[310992642,1704843047052,-506.43227445,0.00035616,2]
[310992643,1704843047061,-1365.01,0.00035616,2]
[310992644,1704843047071,-500.0,0.00035616,2]
[310992645,1704843047081,-500.0,0.00035616,2]
[310992646,1704843047090,-501.71932076,0.00035616,2]
[310992647,1704843047100,-601.18837547,0.00035616,2]
[310992648,1704843047110,-500.18667866,0.00035616,2]
[310992649,1704843047119,-500.0,0.00035616,2]
[310992650,1704843047128,-500.18326723,0.00035616,2]
[310992651,1704843047137,-500.0,0.00035616,2]
[310992652,1704843047147,-500.0,0.00035616,2]
[310992653,1704843047157,-532.48570596,0.00035616,2]
[310992654,1704843047166,-634.32681973,0.00035616,2]
[310992655,1704843047175,-500.0,0.00035616,2]
[310992656,1704843047184,-500.0,0.00035616,2]
[310992657,1704843047194,-501.43481431,0.00035616,2]
[310992658,1704843047203,-554.90031122,0.00035616,2]
[310992659,1704843047212,-500.0,0.00035616,2]
[310992660,1704843047221,-1891.98,0.00035616,2]
[310992661,1704843047231,-183.6338165,0.00035616,2]
[310992662,1704843047241,-189.264127,0.00035616,120]
[310992663,1704843047250,-152.38900235,0.00035686,7]
[310992664,1704843047260,-13632.10155416,0.00035692,5]
[310992665,1704843047270,-200.0,0.000357,4]
[310992666,1704843047279,-5000.0,0.00035728,7]
[310992667,1704843047288,-5000.0,0.00035728,7]
[310992668,1704843047299,-5000.0,0.00035728,7]
[310992669,1704843047308,-653.14,0.00035729,2]
[310992670,1704843047317,-153.37130973,0.00035733,7]
[310992671,1704843047326,-581.56,0.00035753,2]
[310992672,1704843047335,-305.9999997,0.00035781,2]
[310992673,1704843047345,-4000.0,0.00035798,2]
[310992674,1704843047355,-160.0,0.00035798,3]
[310992675,1704843047364,-26206.36574924,0.000358,2]
[310992676,1704843047374,-2000.0,0.000358,5]
[310992677,1704843047383,-2000.0,0.000358,5]
[310992678,1704843047393,-1000.0,0.00035808,2]
[310992679,1704843047402,-2000.0,0.0003581,5]
[310992680,1704843047411,-2000.0,0.0003581,5]
[310992681,1704843047421,-2000.0,0.0003582,5]
[310992682,1704843047430,-2000.0,0.0003582,5]
[310992683,1704843047439,-9134.78271481,0.00035829,7]
[310992684,1704843047449,-2000.0,0.0003583,5]
[310992685,1704843047458,-2000.0,0.0003583,5]
[310992686,1704843047468,-5509.52003294,0.00035839,7]
[310992687,1704843047478,-2000.0,0.0003584,5]
[310992688,1704843047488,-2000.0,0.0003584,5]
[310992689,1704843047497,-1000.0,0.00035842,2]
[310992690,1704843047508,-2000.0,0.0003585,5]
[310992691,1704843047517,-2000.0,0.0003585,5]
[310992692,1704843047528,-152.38900235,0.00035855,7]
[310992693,1704843047538,-2000.0,0.0003586,5]
[310992694,1704843047548,-2000.0,0.0003586,5]
[310992695,1704843047650,-1000.0,0.0003586,2]
[310992696,1704843047661,-1000.0,0.00035862,2]
[310992697,1704843047670,-153.0,0.00035863,2]
[310992698,1704843047679,-306.0,0.00035863,2]
[310992699,1704843047689,-307.1403654,0.00035863,2]
[310992701,1704843047698,-153.0,0.00035863,2]
[310992703,1704843047708,-153.0,0.00035863,2]
[310992705,1704843047717,-153.0,0.00035863,2]
[310992707,1704843047727,-153.0,0.00035863,2]
[310992708,1704843047737,-153.0,0.00035863,2]
[310992710,1704843047746,-153.0,0.00035863,2]
[310992712,1704843047755,-3749.284871,0.0003587,5]
[310992714,1704843047765,-2000.0,0.0003587,5]
[310992716,1704843047775,-1000.0,0.00035879,2]
[310992717,1704843047785,-2000.0,0.0003588,5]
[310992719,1704843047795,-1000.0,0.0003588,2]
[310992721,1704843047806,-225.469193,0.00035889,10]
[310992723,1704843047815,-500.0,0.0003589,2]
[310992725,1704843047825,-500.0,0.0003589,2]
[310992727,1704843047835,-500.0,0.0003589,2]
[310992729,1704843047845,-500.0,0.0003589,2]
[310992731,1704843047855,-500.0,0.0003589,2]
[310992733,1704843047865,-500.0,0.0003589,2]
[310992735,1704843047874,-500.69611721,0.0003589,2]
[310992737,1704843047884,-500.0,0.0003589,2]
[310992739,1704843047893,-500.0,0.0003589,2]
[310992741,1704843047903,-544.14,0.0003589,2]
[310992743,1704843047912,-500.0,0.0003589,2]
[310992744,1704843047922,-500.0,0.0003589,2]
[310992746,1704843047932,-2000.0,0.0003589,5]
[310992748,1704843047942,-500.0,0.0003589,2]
[310992750,1704843047952,-522.21,0.0003589,2]
[310992752,1704843047962,-500.0,0.0003589,2]
[310992754,1704843047971,-500.0,0.0003589,2]
[310992756,1704843047980,-500.0,0.0003589,2]
[310992758,1704843047989,-504.28366915,0.0003589,2]
[310992761,1704843047999,-500.0,0.0003589,2]
[310992763,1704843048010,-500.0,0.0003589,2]
[310992765,1704843048019,-500.0,0.0003589,2]
[310992768,1704843048028,-500.0,0.0003589,2]
[310992771,1704843048037,-500.0,0.0003589,2]
[310992774,1704843048046,-500.0,0.0003589,2]
[310992777,1704843048055,-527.37573656,0.0003589,2]
[310992779,1704843048064,-513.49699543,0.0003589,2]
[310992780,1704843048073,-500.0,0.0003589,2]
[310992782,1704843048082,-500.0,0.0003589,2]
[310992784,1704843048091,-500.00003679,0.0003589,2]
[310992786,1704843048100,-554.2,0.0003589,2]
[310992788,1704843048109,-500.0,0.0003589,2]
[310992790,1704843048119,-500.0,0.0003589,2]
[310992792,1704843048128,-508.29105618,0.0003589,2]
[310992794,1704843048137,-500.0,0.0003589,2]
[310992796,1704843048146,-522.56090064,0.0003589,2]
[310992798,1704843048155,-500.0,0.0003589,2]
[310992799,1704843048165,-220.0,0.0003589,2]
[310992800,1704843048174,-500.0,0.0003589,2]
[310992801,1704843048183,-500.0,0.0003589,2]
[310992802,1704843048192,-609.72875153,0.0003589,2]
[310992803,1704843048201,-500.0,0.0003589,2]
[310992804,1704843048210,-500.0,0.0003589,2]
[310992805,1704843048219,-207.33219449,0.0003589,2]
[310992806,1704843048230,-309.04412086,0.0003589,2]
[310992807,1704843048239,-500.0,0.0003589,2]
[310992808,1704843048252,-500.0,0.0003589,2]
[310992809,1704843048263,-444.79503558,0.0003589,2]
[310992810,1704843048273,-500.0,0.0003589,2]
[310992811,1704843048282,-500.0,0.0003589,2]
[310992812,1704843048292,-500.0,0.0003589,2]
[310992813,1704843048303,-2252.18,0.0003589,2]
[310992814,1704843048314,-1497.09,0.0003589,2]
[310992815,1704843048324,-500.0,0.0003589,2]
[310992816,1704843048343,-500.0,0.0003589,2]
[310992817,1704843048363,-500.0,0.0003589,2]
[310992818,1704843048377,-500.0,0.0003589,2]
[310992819,1704843048393,-500.0,0.0003589,2]
[310992820,1704843048409,-500.0,0.0003589,2]
[310992821,1704843048424,-500.0,0.0003589,2]
[310992822,1704843048438,-500.0,0.0003589,2]
[310992823,1704843048453,-500.0,0.0003589,2]
[310992824,1704843048467,-600.0,0.0003589,2]
[310992825,1704843048482,-500.0,0.0003589,2]
[310992826,1704843048523,-500.0,0.0003589,2]
[310992827,1704843048541,-500.0,0.0003589,2]
[310992828,1704843048555,-500.0,0.0003589,2]
[310992829,1704843048569,-501.94083797,0.0003589,2]
[310992830,1704843048585,-500.0,0.0003589,2]
[310992831,1704843048601,-500.0,0.0003589,2]
[310992832,1704843048619,-500.0,0.0003589,2]
[310992833,1704843048631,-500.0,0.0003589,2]
[310992834,1704843048644,-615.19,0.0003589,2]
[310992835,1704843048659,-500.0,0.0003589,2]
[310992836,1704843048672,-572.58,0.0003589,2]
[310992837,1704843048685,-500.0,0.0003589,2]
[310992838,1704843048697,-500.0,0.0003589,2]
[310992839,1704843048711,-500.0,0.0003589,2]
[310992840,1704843048723,-500.0,0.0003589,2]
[310992841,1704843048737,-500.0,0.0003589,2]
[310992842,1704843048749,-500.0,0.0003589,2]
[310992843,1704843048762,-500.0,0.0003589,2]
[310992844,1704843048775,-500.0,0.0003589,2]
[310992845,1704843048787,-500.0,0.0003589,2]
[310992846,1704843048800,-501.84157681,0.0003589,2]
[310992847,1704843048812,-753.62,0.0003589,2]
[310992848,1704843048825,-500.0,0.0003589,2]
[310992850,1704843048838,-880.07,0.0003589,2]
[310992852,1704843048850,-516.51757613,0.0003589,2]
[310992854,1704843048863,-500.0,0.0003589,2]
[310992856,1704843048875,-500.0,0.0003589,2]
[310992859,1704843048889,-3808.71,0.0003589,2]
[310992861,1704843048902,-1024.89,0.0003589,2]
[310992863,1704843048915,-500.0,0.0003589,2]
[310992864,1704843048928,-506.33631279,0.0003589,2]
[310992865,1704843048941,-500.0,0.0003589,2]
[310992866,1704843048953,-500.0,0.0003589,2]
[310992867,1704843048966,-500.0,0.0003589,2]
[310992869,1704843048978,-227.4561411,0.0003589,2]
[310992870,1704843048991,-519.3,0.0003589,2]
[310992871,1704843049006,-502.32816693,0.0003589,2]
[310992872,1704843049019,-500.0,0.0003589,2]
[310992873,1704843049032,-500.0,0.0003589,2]
[310992874,1704843049045,-500.0,0.0003589,2]
[310992875,1704843049058,-500.0,0.0003589,2]
[310992876,1704843049071,-500.0,0.0003589,2]
[310992878,1704843049084,-500.0,0.0003589,2]
[310992879,1704843049097,-2607.25,0.0003589,2]
[310992880,1704843049110,-500.0,0.0003589,2]
[310992881,1704843049123,-500.0,0.0003589,2]
[310992882,1704843049137,-500.0,0.0003589,2]
[310992883,1704843049151,-500.0,0.0003589,2]
[310992884,1704843049166,-500.0,0.0003589,2]
[310992885,1704843049176,-500.0,0.0003589,2]
[310992886,1704843049186,-500.0,0.0003589,2]
[310992887,1704843049196,-500.0,0.0003589,2]
[310992889,1704843049205,-500.0,0.0003589,2]
[310992891,1704843049214,-500.0,0.0003589,2]
[310992892,1704843049223,-722.82,0.0003589,2]
[310992894,1704843049233,-500.0,0.0003589,2]
[310992895,1704843049244,-500.0,0.0003589,2]
[310992896,1704843049257,-1728.68,0.0003589,2]
[310992897,1704843049410,-500.0,0.0003589,2]
[310992898,1704843049426,-500.0,0.0003589,2]
[310992899,1704843049435,-500.0,0.0003589,2]
[310992900,1704843049444,-500.0,0.0003589,2]
[310992901,1704843049454,-500.0,0.0003589,2]
[310992902,1704843049463,-500.0,0.0003589,2]
[310992903,1704843049472,-500.0,0.0003589,2]
[310992904,1704843049481,-514.91833875,0.0003589,2]
[310992905,1704843049491,-500.0,0.0003589,2]
[310992906,1704843049500,-500.0,0.0003589,2]
[310992907,1704843049512,-640.56,0.0003589,2]
[310992908,1704843049521,-1471.13,0.0003589,2]
[310992909,1704843049531,-500.0,0.0003589,2]
[310992910,1704843049540,-500.0,0.0003589,2]
[310992911,1704843049550,-597.05,0.0003589,2]
[310992912,1704843049559,-500.0,0.0003589,2]
[310992913,1704843049568,-500.0,0.0003589,2]
[310992914,1704843049578,-469.14788274,0.0003589,2]
[310992915,1704843049587,-500.0,0.0003589,2]
[310992916,1704843049596,-369.30655585,0.0003589,2]
[310992917,1704843049606,-193.63327634,0.0003589,2]
[310992918,1704843049615,-500.0,0.0003589,2]
[310992919,1704843049624,-500.0,0.0003589,2]
[310992920,1704843049634,-500.0,0.0003589,2]
[310992921,1704843049643,-500.0,0.0003589,2]
[310992922,1704843049652,-503.21238465,0.0003589,2]
[310992923,1704843049662,-500.0,0.0003589,2]
[310992924,1704843049671,-500.0,0.0003589,2]
[310992925,1704843049680,-500.0,0.0003589,2]
[310992926,1704843049690,-606.91,0.0003589,2]
[310992927,1704843049699,-3709.22,0.0003589,2]
[310992928,1704843049708,-500.0,0.0003589,2]
[310992929,1704843049718,-500.0,0.0003589,2]
[310992930,1704843049728,-500.0,0.0003589,2]
[310992931,1704843049737,-500.0,0.0003589,2]
[310992932,1704843049750,-500.0,0.0003589,2]
[310992933,1704843049761,-500.0,0.0003589,2]
[310992934,1704843049770,-500.0,0.0003589,2]
[310992935,1704843049779,-1754.44,0.0003589,2]
[310992936,1704843049789,-500.0,0.0003589,2]
[310992937,1704843049798,-500.0,0.0003589,2]
[310992938,1704843049808,-500.0,0.0003589,2]
[310992939,1704843049818,-500.0,0.0003589,2]
[310992940,1704843049827,-1532.08,0.0003589,2]
[310992941,1704843049836,-500.0,0.0003589,2]
[310992942,1704843049846,-500.0,0.0003589,2]
[310992943,1704843049856,-581.56,0.0003589,2]
[310992944,1704843049869,-500.0,0.0003589,2]
[310992945,1704843049878,-500.0,0.0003589,2]
[310992946,1704843049888,-560.01098531,0.0003589,2]
[310992947,1704843049898,-8733.16,0.0003589,2]
[310992948,1704843049907,-500.0,0.0003589,2]
[310992949,1704843049917,-500.0,0.0003589,2]
[310992950,1704843049927,-500.0,0.0003589,2]
[310992951,1704843049937,-500.0,0.0003589,2]
[310992952,1704843049946,-500.0,0.0003589,2]
[310992953,1704843049956,-2728.52432157,0.0003589,2]
[310992954,1704843050092,-3214.19567843,0.0003589,2]
[310992955,1704843050101,-500.0,0.0003589,2]
[310992956,1704843050110,-8079.57,0.0003589,2]
[310992957,1704843050120,-500.0,0.0003589,2]
[310992958,1704843050131,-2404.59,0.0003589,2]
[310992959,1704843050142,-523.29,0.0003589,2]
[310992960,1704843050152,-500.0,0.0003589,2]
[310992961,1704843050161,-500.0,0.0003589,2]
[310992962,1704843050171,-698.91,0.0003589,2]
[310992963,1704843050180,-500.0,0.0003589,2]
[310992964,1704843050191,-500.0,0.0003589,2]
[310992965,1704843050200,-680.43,0.0003589,2]
[310992966,1704843050209,-2007.44,0.0003589,2]
[310992967,1704843050218,-5750.93,0.0003589,2]
[310992968,1704843050228,-500.0,0.0003589,2]
[310992969,1704843050240,-3665.7,0.0003589,2]
[310992970,1704843050249,-500.0,0.0003589,2]
[310992971,1704843050260,-500.0,0.0003589,2]
[310992972,1704843050269,-812.52,0.0003589,2]
[310992973,1704843050279,-1201.4,0.0003589,2]
[310992974,1704843050288,-46994.92,0.0003589,2]
[310992975,1704843050298,-1998.35,0.0003589,2]
[310992976,1704843050307,-500.0,0.0003589,2]
[310992977,1704843050316,-258.99031022,0.0003589,2]
[310992978,1704843050326,-2626.13,0.0003589,2]
[310992979,1704843050336,-500.0,0.0003589,2]
[310992980,1704843050346,-500.0,0.0003589,2]
[310992981,1704843050355,-538.95,0.0003589,2]
[310992982,1704843050365,-515.88,0.0003589,2]
[310992983,1704843050375,-500.0,0.0003589,2]
[310992984,1704843050386,-1988.92,0.0003589,2]
[310992985,1704843050396,-500.0,0.0003589,2]
[310992986,1704843050405,-500.0,0.0003589,2]
[310992987,1704843050414,-513.10047227,0.0003589,2]